fUSD/lending_fUSD_20260407
["ID","MTS","AMOUNT","RATE_DAILY","PERIOD"]
[419989883,1775588233150,151.0,0.00012589,2]
[419989884,1775588233749,151.0,0.00012589,2]
[419989885,1775588234380,151.0,0.00012589,2]
[419989886,1775588234973,151.0,0.00012589,2]
[419989887,1775588235571,151.0,0.00012589,2]
[419989888,1775588235604,2756.60297005,0.00012497,2]
[419989889,1775588235630,1738.43229136,0.00012497,2]
[419989890,1775588236360,151.0,0.00012589,2]
[419989891,1775588236545,500.0,0.00012589,2]
[419989892,1775588236953,151.0,0.00012589,2]
[419989893,1775588237484,200.0,0.00012589,2]
[419989895,1775588237997,151.0,0.00012589,2]
[419989896,1775588240480,151.0,0.00012589,2]
[419989897,1775588240595,151.0,0.00012589,2]
[419989898,1775588240630,500.0,0.00012589,2]
[419989899,1775588240868,151.0,0.00012589,2]
[419989900,1775588241165,151.0,0.00012589,2]
[419989901,1775588244937,1199.20597015,0.00012589,2]
[419989902,1775588434008,240.13266659,0.00012587,2]
[419989903,1775588434562,2725.0,0.000125,3]
[419989904,1775588466345,151.0,0.00012589,2]
[419989905,1775588466391,272.42138973,0.00012589,2]
[419989906,1775588466420,151.0,0.00012589,2]
[419989907,1775588466464,151.0,0.00012589,2]
[419989908,1775588470324,245.64926774,0.00012589,2]
[419989909,1775588470353,256.33543605,0.00012589,2]
[419989910,1775588471824,213.61286338,0.00012589,2]
[419989911,1775588473827,178.01071948,0.00012589,2]
[419989912,1775588475719,151.0,0.00012589,2]
[419989915,1775588489128,2469.792,0.00012345,2]
[419989916,1775588489158,180.569,0.00012345,2]
[419989918,1775588534069,200.0,0.00012589,2]
[419989920,1775588548098,325.67572742,0.00012589,2]
[419989923,1775588616712,9092.68998741,0.00012497,2]
[419989924,1775588620281,907.32001259,0.00012354,2]
[419989925,1775588620305,3766.54998741,0.00012354,2]
[419989926,1775588628651,1600.0,0.00012289,2]
[419989927,1775588650977,4633.46001259,0.000124,5]
[419989928,1775588651001,899.53998741,0.000124,5]
[419989929,1775588658815,2668.28570667,0.00012497,2]
[419989930,1775588661947,178.63863068,0.00012497,2]
[419989931,1775588720033,150.0,0.00012289,2]
[419989932,1775588738855,-150.0,0.00012595,2]
[419989933,1775588738887,-1200.0,0.00012595,2]
[419989934,1775588739120,151.0,0.00012595,2]
[419989935,1775588749100,894.19041012,0.00012497,2]
[419989936,1775588749125,3038.96544364,0.00012497,2]
[419989938,1775588817895,178.63863067,0.00012497,2]
[419989939,1775588824615,2885.94160093,0.00012496,2]
[419989940,1775588824642,10000.01,0.00012496,2]
[419989941,1775588824667,10000.01,0.00012496,2]
[419989942,1775588824693,10000.01,0.00012496,2]
[419989943,1775588825141,10000.01,0.00012496,2]
[419989944,1775588825171,10000.01,0.00012496,2]
[419989945,1775588825196,10000.01,0.00012496,2]
[419989946,1775588825222,10000.01,0.00012496,2]
[419989947,1775588825248,10000.01,0.00012496,2]
[419989948,1775588825274,10000.01,0.00012496,2]
[419989949,1775588835792,-5417.38585942,0.00012496,2]
[419989950,1775588835809,-10000.01,0.00012496,2]
[419989951,1775588835824,-10000.01,0.00012496,2]
[419989952,1775588835841,-10000.01,0.00012496,2]
[419989953,1775588835857,-10000.01,0.00012496,2]
[419989954,1775588835872,-10000.01,0.00012496,2]
[419989955,1775588835889,-10000.01,0.00012496,2]
[419989956,1775588835905,-10000.01,0.00012496,2]
[419989957,1775588835920,-10000.01,0.00012496,2]
[419989981,1775589033337,-500.0,0.00012242,2]
[419989982,1775589033348,-607.0457332,0.000123,2]
[419989983,1775589033358,-8104.63186937,0.00012431,2]
[419989984,1775589033371,-78.78911929,0.00012431,2]
[419989985,1775589033382,-165.06617161,0.00012473,2]
[419989986,1775589033393,-500.0,0.00012473,2]
[419989987,1775589033403,-220.96705391,0.00012473,2]
[419989988,1775589033414,-500.0,0.00012473,2]
[419989989,1775589033424,-159.99431012,0.00012473,2]
[419989990,1775589033434,-500.0,0.00012473,2]
[419989991,1775589033445,-500.0,0.00012473,2]
[419989992,1775589033455,-500.0,0.00012473,2]
[419989993,1775589033466,-500.0,0.00012473,2]
[419989994,1775589033477,-500.0,0.00012473,2]
[419989995,1775589033488,-500.0,0.00012473,2]
[419989996,1775589033498,-500.0,0.00012473,2]
[419989997,1775589033509,-167.6897388,0.00012473,2]
[419989998,1775589033519,-500.0,0.00012473,2]
[419989999,1775589033531,-1200.0,0.00012495,2]
[419990000,1775589033542,-41685.55701816,0.00012496,2]
[419990001,1775589033558,-2170.12476083,0.00012496,2]
[419990002,1775589033578,-89.90176066,0.00012496,2]
[419990003,1775589033589,-195.0,0.00012496,2]
[419990004,1775589033599,-159.0,0.00012496,3]
[419990005,1775589033608,-1711.98773625,0.00012497,2]
[419990007,1775589033620,-1015.04698736,0.00012497,2]
[419990009,1775589033632,-994.88176241,0.00012497,2]
[419990011,1775589033645,-1179.57782901,0.00012497,2]
[419990014,1775589033657,-3837.0,0.00012497,2]
[419990016,1775589033681,-407.0,0.00012497,2]
[419990019,1775589033693,-58175.52808345,0.00012497,2]
[419990051,1775589038297,-919.73792607,0.00012497,2]
[419990052,1775589038515,-1473.83206169,0.00012497,2]
[419990053,1775589038528,-1792.35655282,0.00012497,2]
[419990054,1775589038541,-2302.59726528,0.00012497,2]
[419990068,1775589040664,-1284.44284588,0.00012497,2]
[419990069,1775589040774,-421178.85004978,0.00012497,2]
[419990070,1775589040784,-195.0,0.00012531,2]
[419990071,1775589040793,-195.0,0.00012531,2]
[419990072,1775589040803,-195.0,0.00012531,2]
[419990073,1775589040813,-500.0,0.00012573,2]
[419990074,1775589040822,-151.0,0.00012595,2]
[419990075,1775589040833,-500.0,0.00012596,2]
[419990076,1775589040843,-1117.02022932,0.00012596,3]
[419990077,1775589040853,-1117.02022932,0.00012596,3]
[419990078,1775589040863,-1117.02022931,0.00012596,3]
[419990079,1775589040873,-1117.02022931,0.00012596,3]
[419990080,1775589040883,-390.1836358,0.00012597,2]
[419990081,1775589040893,-1000.0,0.00012697,2]
[419990082,1775589040903,-8183.42098862,0.00012816,2]
[419990083,1775589040913,-4300.0,0.000129,4]
[419990084,1775589040922,-1157.0,0.00012909,2]
[419990085,1775589040932,-150.0,0.00013,2]
[419990086,1775589040942,-250.0,0.00013,2]
[419990087,1775589040952,-500.0,0.00013021,2]
[419990088,1775589040962,-1000.0,0.00013021,2]
[419990089,1775589040972,-955.14370669,0.00013021,2]
[419990090,1775589040982,-199.90943792,0.00013021,2]
[419990091,1775589040992,-500.26271237,0.00013021,2]
[419990092,1775589041002,-1000.0,0.00013021,2]
[419990093,1775589041011,-1000.0,0.00013021,2]
[419990094,1775589041021,-503.71720213,0.00013021,2]
[419990095,1775589041031,-246.19819172,0.00013021,2]
[419990096,1775589041040,-1000.0,0.00013021,2]
[419990097,1775589041050,-969.0,0.00013037,2]
[419990098,1775589041060,-727.56213983,0.0001306,2]
[419990099,1775589041071,-1298.0,0.00013063,2]
[419990100,1775589041080,-506.0,0.000131,2]
[419990101,1775589041090,-150.15,0.00013159,2]
[419990102,1775589041100,-8183.42098862,0.00013202,2]
[419990103,1775589041110,-500.7756123,0.00013313,2]
[419990104,1775589041120,-1484.0,0.00013437,2]
[419990105,1775589041130,-250.0,0.00013443,2]
[419990106,1775589041140,-1437.0,0.00013464,2]
[419990107,1775589041150,-250.0,0.00013466,2]
[419990108,1775589041160,-1037.33935184,0.00013568,2]
[419990109,1775589041169,-1500.0,0.00013568,2]
[419990110,1775589041179,-1500.0,0.00013568,2]
[419990111,1775589041189,-1500.0,0.00013568,2]
[419990112,1775589041198,-8183.42098862,0.00013587,2]
[419990113,1775589041208,-579.974,0.00013602,2]
[419990114,1775589041218,-576.67433813,0.00013673,2]
[419990115,1775589041228,-500.62661423,0.00013673,2]
[419990116,1775589041237,-500.29821568,0.00013673,2]
[419990117,1775589041247,-500.0,0.00013673,2]
[419990118,1775589041257,-500.0,0.00013673,2]
[419990119,1775589041267,-500.0,0.00013673,2]
[419990120,1775589041277,-500.0,0.00013673,2]
[419990121,1775589041287,-500.0,0.00013673,2]
[419990122,1775589041297,-500.0,0.00013673,2]
[419990123,1775589041307,-169.6458463,0.00013673,2]
[419990124,1775589041317,-170.09504983,0.00013673,2]
[419990125,1775589041326,-500.0,0.00013673,2]
[419990126,1775589041336,-390.77484076,0.00013698,2]
[419990127,1775589041346,-500.0,0.00013698,2]
[419990128,1775589041357,-500.0,0.00013698,2]
[419990129,1775589041366,-500.0,0.00013698,2]
[419990130,1775589041377,-500.0,0.00013698,2]
[419990131,1775589041387,-500.0,0.00013698,2]
[419990132,1775589041396,-500.0,0.00013698,2]
[419990133,1775589041406,-500.0,0.00013698,2]
[419990134,1775589041416,-500.0,0.00013698,2]
[419990135,1775589041426,-500.0,0.00013698,2]
[419990136,1775589041436,-500.0,0.00013698,2]
[419990137,1775589041446,-500.0,0.00013698,2]
[419990138,1775589041456,-500.0,0.00013698,2]
[419990139,1775589041466,-500.0,0.00013698,2]
[419990140,1775589041476,-500.0,0.00013698,2]
[419990141,1775589041487,-500.0,0.00013698,2]
[419990142,1775589041497,-500.0,0.00013698,2]
[419990143,1775589041507,-500.0,0.00013698,2]
[419990144,1775589041517,-500.0,0.00013698,2]
[419990145,1775589041527,-500.0,0.00013698,2]
[419990146,1775589041537,-500.0,0.00013698,2]
[419990147,1775589041547,-500.0,0.00013698,2]
[419990148,1775589041557,-500.0,0.00013698,2]
[419990149,1775589041567,-500.0,0.00013698,2]
[419990150,1775589041576,-500.0,0.00013698,2]
[419990151,1775589041587,-500.0,0.00013698,2]
[419990152,1775589041597,-500.0,0.00013698,2]
[419990153,1775589041607,-500.0,0.00013698,2]
[419990154,1775589041616,-500.0,0.00013698,2]
[419990155,1775589041625,-500.0,0.00013698,2]
[419990156,1775589041634,-500.0,0.00013698,2]
[419990157,1775589041644,-500.0,0.00013698,2]
[419990158,1775589041653,-500.0,0.00013698,2]
[419990159,1775589041663,-500.0,0.00013698,2]
[419990160,1775589041673,-500.0,0.00013698,2]
[419990161,1775589041683,-500.0,0.00013698,2]
[419990162,1775589041693,-500.0,0.00013698,2]
[419990163,1775589041703,-500.0,0.00013698,2]
[419990164,1775589041712,-500.0,0.00013698,2]
[419990165,1775589041723,-500.0,0.00013698,2]
[419990166,1775589041733,-500.0,0.00013698,2]
[419990167,1775589041745,-500.0,0.00013698,2]
[419990168,1775589041755,-500.0,0.00013698,2]
[419990169,1775589041765,-922.22,0.00013698,2]
[419990170,1775589041775,-922.22,0.00013698,2]
[419990171,1775589041785,-922.22,0.00013698,2]
[419990172,1775589041795,-922.22,0.00013698,2]
[419990173,1775589041805,-922.22,0.00013698,2]
[419990174,1775589041814,-500.0,0.00013698,2]
[419990175,1775589041825,-500.0,0.00013698,2]
[419990176,1775589041834,-500.0,0.00013698,2]
[419990177,1775589041843,-500.0,0.00013698,2]
[419990178,1775589041853,-500.0,0.00013698,2]
[419990179,1775589041863,-500.0,0.00013698,2]
[419990180,1775589041873,-500.0,0.00013698,2]
[419990181,1775589041883,-500.0,0.00013698,2]
[419990182,1775589041893,-500.0,0.00013698,2]
[419990183,1775589041902,-500.0,0.00013698,2]
[419990184,1775589041912,-592.36573731,0.00013698,2]
[419990185,1775589041922,-500.0,0.00013698,2]
[419990186,1775589041932,-500.0,0.00013698,2]
[419990187,1775589042310,-500.0,0.00013698,2]
[419990188,1775589042355,-500.0,0.00013698,2]
[419990189,1775589042365,-500.0,0.00013698,2]
[419990190,1775589042375,-500.0,0.00013698,2]
[419990191,1775589042385,-500.0,0.00013698,2]
[419990192,1775589042395,-500.0,0.00013698,2]
[419990193,1775589042404,-500.0,0.00013698,2]
[419990194,1775589042414,-500.0,0.00013698,2]
[419990195,1775589042424,-500.0,0.00013698,2]
[419990196,1775589042434,-500.0,0.00013698,2]
[419990197,1775589042443,-500.0,0.00013698,2]
[419990198,1775589042453,-500.0,0.00013698,2]
[419990199,1775589042464,-150.0,0.00013699,2]
[419990200,1775589042474,-150.0,0.00013699,2]
[419990201,1775589042485,-150.0,0.00013699,2]
[419990202,1775589042495,-1577.79,0.00013699,2]
[419990203,1775589042506,-200.0,0.00013699,2]
[419990204,1775589042516,-180.21187415,0.00013699,2]
[419990205,1775589042526,-337.90453598,0.00013699,2]
[419990206,1775589042536,-500.0,0.00013699,2]
[419990207,1775589042546,-164.39680661,0.00013699,2]
[419990208,1775589042555,-500.0,0.00013699,2]
[419990209,1775589042565,-561.33456625,0.00013699,2]
[419990210,1775589042575,-352.48557695,0.00013699,2]
[419990211,1775589042584,-500.0,0.00013699,2]
[419990212,1775589042595,-163.84182296,0.00013699,2]
[419990213,1775589042605,-101672.63,0.000137,2]
[419990214,1775589042614,-1680.0,0.00013744,2]
[419990215,1775589042624,-500.0,0.00013745,2]
[419990216,1775589042634,-500.0,0.00013745,2]
[419990217,1775589042643,-500.0,0.00013745,2]
[419990218,1775589042652,-500.0,0.00013745,2]
[419990219,1775589042661,-500.0,0.00013745,2]
[419990220,1775589042672,-300.0,0.00013745,2]
[419990221,1775589042682,-300.0,0.00013745,2]
[419990222,1775589042692,-300.0,0.00013745,2]
[419990223,1775589042703,-300.0,0.00013745,2]
[419990224,1775589042713,-356.43990232,0.00013745,2]
[419990225,1775589042722,-195.0,0.00013745,2]
[419990226,1775589042732,-302.95,0.00013774,2]
[419990227,1775589042742,-1600.0,0.00013825,2]
[419990228,1775589042753,-2500.0,0.00013855,2]
[419990229,1775589042763,-2500.0,0.00013855,2]
[419990230,1775589042773,-2500.0,0.00013855,2]
[419990231,1775589042783,-2500.0,0.00013855,2]
[419990232,1775589042792,-2500.0,0.00013855,2]
[419990233,1775589042801,-8700.0,0.000139,5]
[419990234,1775589042811,-150.15,0.00013933,2]
[419990235,1775589042821,-150.0,0.00013973,2]
[419990236,1775589042831,-150.0,0.00013973,2]
[419990237,1775589042841,-150.0,0.00013973,2]
[419990238,1775589042852,-8183.42098862,0.00013973,2]
[419990239,1775589042861,-2000.0,0.00014116,2]
[419990240,1775589042871,-2000.0,0.00014116,2]
[419990241,1775589042880,-2000.0,0.00014116,2]
[419990242,1775589042890,-506.0,0.00014129,2]
[419990243,1775589042900,-219.82,0.00014198,2]
[419990244,1775589042910,-500.0,0.00014221,2]
[419990245,1775589042919,-1000.0,0.00014221,2]
[419990246,1775589042929,-1000.0,0.00014221,2]
[419990247,1775589042939,-500.0,0.00014221,2]
[419990248,1775589042949,-1000.0,0.00014221,2]
[419990249,1775589042958,-500.0,0.00014221,2]
[419990252,1775589042969,-502.49539828,0.00014221,2]
[419990254,1775589042980,-150.0,0.00014247,2]
[419990255,1775589042991,-150.0,0.00014247,2]
[419990256,1775589043002,-150.0,0.00014247,2]
[419990257,1775589043012,-500.0,0.00014247,2]
[419990258,1775589043022,-500.0,0.00014247,2]
[419990259,1775589043032,-178.63863067,0.00014288,2]
[419990260,1775589043043,-165.5114,0.000143,2]
[419990261,1775589043054,-8183.42098862,0.00014358,2]
[419990262,1775589043064,-150.0,0.000144,2]
[419990263,1775589043074,-150.0,0.000144,2]
[419990264,1775589043084,-150.0,0.000144,2]
[419990265,1775589043095,-150.0,0.000144,2]
[419990266,1775589043105,-150.0,0.000144,2]
[419990267,1775589043116,-150.0,0.000144,2]
[419990269,1775589043125,-150.0,0.000144,2]
[419990270,1775589043135,-150.0,0.000144,2]
[419990273,1775589043146,-150.0,0.000144,2]
[419990275,1775589043156,-150.0,0.000144,2]
[419990277,1775589043166,-150.0,0.000144,2]
[419990280,1775589043177,-150.0,0.000144,2]
[419990282,1775589043187,-150.0,0.000144,2]
[419990284,1775589043198,-150.0,0.000144,2]
[419990286,1775589043208,-152.0,0.000144,2]
[419990288,1775589043218,-159.88645984,0.000144,2]
[419990290,1775589043229,-150.0,0.00014578,2]
[419990292,1775589043239,-150.0,0.00014578,2]
[419990294,1775589043250,-150.0,0.00014629,2]
[419990295,1775589043260,-508.06532933,0.00014664,2]
[419990296,1775589043271,-1500.0,0.00014664,2]
[419990297,1775589043281,-1500.0,0.00014664,2]
[419990298,1775589043291,-150.0,0.0001472,2]
[419990299,1775589043301,-150.0,0.0001472,2]
[419990300,1775589043311,-8183.42098862,0.00014744,2]
[419990301,1775589043321,-150.0,0.00014756,2]
[419990302,1775589043332,-150.0,0.00014756,2]
[419990303,1775589043342,-1500.0,0.00014768,2]
[419990304,1775589043352,-391.29868191,0.00014768,2]
[419990305,1775589043363,-1500.0,0.00014768,2]
[419990306,1775589043372,-150.0,0.000148,2]
[419990307,1775589043383,-150.0,0.000148,2]
[419990308,1775589043393,-150.0,0.000148,2]
[419990309,1775589043405,-150.0,0.00014857,2]
[419990310,1775589043415,-250.0,0.00014871,2]
[419990311,1775589043425,-150.0,0.00014933,2]
[419990312,1775589043435,-150.0,0.00014933,2]
[419990313,1775589043446,-160.0,0.00014994,2]
[419990314,1775589043456,-451.205098,0.00014994,2]
[419990315,1775589043466,-742.410196,0.00014994,2]
[419990316,1775589043476,-160.0,0.00014994,7]
[419990317,1775589043486,-354.144942,0.00014994,7]
[419990318,1775589043496,-548.289885,0.00014994,7]
[419990319,1775589043506,-160.0,0.00014994,7]
[419990320,1775589043517,-984.109166,0.00014994,7]
[419990321,1775589043527,-1808.218333,0.00014994,7]
[419990322,1775589043538,-898.0,0.00015,2]
[419990323,1775589043549,-532.0,0.00015,2]
[419990324,1775589043559,-300.0,0.00015,2]
[419990325,1775589043569,-150.0,0.0001504,2]
[419990326,1775589043578,-150.0,0.0001504,2]
[419990327,1775589043588,-160.0,0.00015053,7]
[419990328,1775589043599,-1536.809877,0.00015053,7]
[419990329,1775589043610,-2913.619754,0.00015053,7]
[419990330,1775589043620,-390.18363578,0.00015064,2]
[419990331,1775589043631,-150.0,0.00015086,2]
[419990332,1775589043641,-150.0,0.00015111,2]
[419990333,1775589043651,-150.0,0.00015111,2]
[419990334,1775589043661,-2351.0,0.00015119,2]
[419990335,1775589043671,-506.0,0.00015158,3]
[419990336,1775589043680,-150.0,0.000152,2]
[419990337,1775589043691,-150.0,0.000152,2]
[419990338,1775589043701,-150.0,0.000152,2]
[419990340,1775589043711,-150.0,0.000152,2]
[419990342,1775589043721,-155.26329613,0.00015223,2]
[419990344,1775589043731,-150.0,0.00015289,2]
[419990345,1775589043743,-150.0,0.00015289,2]
[419990346,1775589043754,-101672.63,0.000153,2]
[419990348,1775589043764,-150.0,0.00015314,2]
[419990350,1775589043775,-2000.0,0.00015316,2]
[419990352,1775589043785,-2000.0,0.00015316,2]
[419990354,1775589043796,-500.0,0.00015316,2]
[419990355,1775589043806,-150.0,0.0001536,2]
[419990357,1775589043817,-150.0,0.0001536,2]
[419990358,1775589043827,-1600.0,0.00015362,2]
[419990359,1775589043837,-985.75,0.00015459,2]
[419990360,1775589043847,-150.0,0.00015467,2]
[419990361,1775589043858,-150.0,0.00015467,2]
[419990363,1775589043868,-500.0,0.00015499,2]
[419990364,1775589043879,-500.0,0.00015499,2]
[419990365,1775589043889,-182.6269,0.000155,2]
[419990366,1775589043898,-13000.0,0.000155,5]
[419990367,1775589043909,-4000.0,0.00015507,2]
[419990368,1775589043919,-150.0,0.00015543,2]
[419990369,1775589043929,-150.0,0.000156,2]
[419990370,1775589043939,-150.0,0.000156,2]
[419990371,1775589043949,-150.0,0.000156,2]
[419990372,1775589043960,-17400.0,0.000156,5]
[419990373,1775589043970,-150.0,0.00015644,2]
[419990374,1775589043981,-150.0,0.00015644,2]
[419990375,1775589043992,-2655.0,0.0001568,5]
[419990376,1775589044003,-2812.0,0.0001568,2]
[419990377,1775589044013,-150.0,0.0001568,2]
[419990378,1775589044024,-150.0,0.0001568,2]
[419990379,1775589044034,-350.0,0.00015692,2]
[419990380,1775589044044,-500.0,0.00015699,2]
[419990381,1775589044054,-500.0,0.00015699,2]
[419990382,1775589044064,-500.0,0.00015699,2]
[419990383,1775589044074,-500.0,0.00015699,2]
[419990384,1775589044085,-500.0,0.00015699,2]
[419990385,1775589044095,-500.0,0.00015699,2]
[419990386,1775589044105,-500.0,0.00015699,2]
[419990387,1775589044114,-922.22,0.00015699,2]
[419990388,1775589044125,-500.0,0.00015699,2]
[419990389,1775589044135,-500.0,0.00015699,2]
[419990390,1775589044145,-10000.0,0.000157,2]
[419990391,1775589044154,-21800.0,0.000157,5]
[419990392,1775589044164,-349.22594777,0.00015718,2]
[419990393,1775589044173,-985.75,0.00015733,2]
[419990394,1775589044183,-615.279679,0.00015744,2]
[419990395,1775589044193,-724.387383,0.00015744,7]
[419990396,1775589044203,-1341.967045,0.00015744,7]
[419990397,1775589044212,-785.92,0.00015771,2]
[419990398,1775589044223,-150.0,0.00015771,2]
[419990399,1775589044232,-150.0,0.00015772,2]
[419990400,1775589044242,-152.0,0.00015784,2]
[419990401,1775589044252,-4300.0,0.000158,5]
[419990402,1775589044262,-2095.649832,0.00015805,7]
[419990403,1775589044272,-150.0,0.00015822,2]
[419990404,1775589044283,-150.0,0.00015822,2]
[419990405,1775589044293,-302.95,0.00015825,2]
[419990406,1775589044303,-169.1901,0.0001584,2]
[419990407,1775589044314,-10000.0,0.0001584,2]
[419990408,1775589044324,-169.1901,0.0001585,2]
[419990409,1775589044334,-169.1901,0.0001586,2]
[419990410,1775589044344,-1577.79,0.00015862,2]
[419990411,1775589044353,-513.22099072,0.00015864,2]
[419990412,1775589044364,-1000.0,0.00015864,2]
[419990413,1775589044373,-169.1901,0.0001587,2]
[419990414,1775589044383,-500.0,0.00015873,2]
[419990415,1775589044393,-500.0,0.00015873,2]
[419990416,1775589044403,-500.27198937,0.00015873,2]
[419990417,1775589044413,-502.96988739,0.00015873,2]
[419990418,1775589044422,-500.0,0.00015873,2]
[419990419,1775589044433,-500.0,0.00015873,2]
[419990420,1775589044443,-169.1901,0.0001588,2]
[419990421,1775589044452,-169.1901,0.0001589,2]
[419990422,1775589044462,-4000.0,0.00015895,2]
[419990423,1775589044472,-8659.8002,0.000159,2]
[419990424,1775589044482,-150.0,0.000159,2]
[419990425,1775589044492,-150.0,0.000159,2]
[419990426,1775589044501,-150.0,0.000159,2]
[419990427,1775589044511,-177.4914121,0.000159,2]
[419990428,1775589044522,-4300.0,0.000159,5]
[419990429,1775589044532,-150.0,0.000159,2]
[419990430,1775589044542,-4549.38317389,0.000159,2]
[419990431,1775589044552,-150.0,0.000159,2]
[419990432,1775589044562,-1853.25106067,0.000159,2]
[419990433,1775589044573,-2000.0,0.000159,2]
[419990434,1775589044584,-550.97,0.0001592,2]
[419990435,1775589044594,-5000.0,0.0001596,2]
[419990436,1775589044604,-3269.0,0.00015973,2]
[419990437,1775589044614,-501.19620744,0.00015973,2]
[419990438,1775589044624,-628.06797502,0.00015973,2]
[419990439,1775589044634,-500.0,0.00015973,2]
[419990440,1775589044644,-500.0,0.00015973,2]
[419990441,1775589044654,-500.0,0.00015973,2]
[419990442,1775589044664,-501.02973938,0.00015973,2]
[419990443,1775589044674,-286.56433231,0.00015973,2]
[419990444,1775589044684,-500.0,0.00015973,2]
[419990445,1775589044694,-500.0,0.00015973,2]
[419990446,1775589044703,-500.0,0.00015973,2]
[419990447,1775589044713,-500.0,0.00015973,2]
[419990448,1775589044723,-500.0,0.00015973,2]
[419990449,1775589044733,-500.0,0.00015973,2]
[419990450,1775589044743,-500.0,0.00015973,2]
[419990451,1775589044752,-474.57359568,0.00015973,2]
[419990452,1775589044762,-500.0,0.00015973,2]
[419990453,1775589044772,-500.0,0.00015973,2]
[419990454,1775589044783,-503.7652055,0.00015973,2]
[419990455,1775589044793,-500.0,0.00015973,2]
[419990456,1775589044803,-500.0,0.00015973,2]
[419990457,1775589044813,-500.0,0.00015973,2]
[419990458,1775589044823,-500.0,0.00015973,2]
[419990459,1775589044833,-290.6020449,0.00015973,2]
[419990460,1775589044842,-244.01107124,0.00015973,2]
[419990461,1775589044852,-500.0,0.00015973,2]
[419990462,1775589044862,-288.2071777,0.00015973,2]
[419990463,1775589044872,-500.0,0.00015973,2]
[419990464,1775589044882,-500.0,0.00015974,2]
[419990465,1775589044892,-500.0,0.00015974,2]
[419990466,1775589044902,-420.92327574,0.00015976,2]
[419990467,1775589044912,-10134.3970372,0.00015986,2]
[419990468,1775589044923,-106027.2166569,0.00015986,2]
[419990469,1775589044933,-13232.1969013,0.00015986,2]
[419990470,1775589044944,-908.4481114,0.00015986,2]
[419990471,1775589044954,-420.92327574,0.0001599,2]
[419990472,1775589044965,-420.92327574,0.0001599,2]
[419990473,1775589044975,-500.0,0.00015999,2]
[419990474,1775589044985,-500.0,0.00015999,2]
[419990475,1775589044995,-500.0,0.00015999,2]
[419990476,1775589045005,-500.0,0.00015999,2]
[419990477,1775589045015,-500.0,0.00015999,2]
[419990478,1775589045025,-500.0,0.00015999,2]
[419990479,1775589045035,-500.0,0.00015999,2]
[419990480,1775589045045,-500.0,0.00015999,2]
[419990481,1775589045055,-500.0,0.00015999,2]
[419990482,1775589045065,-500.0,0.00015999,2]
[419990483,1775589045075,-500.0,0.00015999,2]
[419990484,1775589045085,-420.19790691,0.00015999,2]
[419990485,1775589045095,-500.0,0.00015999,2]
[419990486,1775589045105,-500.0,0.00015999,2]
[419990487,1775589045115,-500.0,0.00015999,2]
[419990488,1775589045124,-500.0,0.00015999,2]
[419990489,1775589045134,-500.0,0.00015999,2]
[419990490,1775589045144,-500.0,0.00015999,2]
[419990491,1775589045153,-500.0,0.00015999,2]